Cogmind - Beta 16 @@@ ROGUE MODE // 2025.11.22 @ 09:22:34 Player: Derk Result: Destroyed by D6-1S2(R) with Subdweller Machine Gun Performance ------------- Evolutions (0) 0 Regions Visited (2) 400 Robots Destroyed (21) 105 Value Destroyed (476) 476 Prototype IDs (16) 320 Alien Tech Used (0) 0 Bonus (-92) -92 TOTAL SCORE: 1209 Bonus ------- Friendly Fire -92 Cogmind --------- Core Integrity 0/250 Matter 92/300 Energy 144/160 System Corruption 0% Temperature Cool (0) Movement Rolling (175) Ox5 Location -10/Subcaves Parts ------- > --- POWER (1) -------- Light Nuclear Core > --- PROPULSION (2) --- Compact Wheel > --- UTILITY (2) ------ Huge Storage Unit Light Armor Plating > --- WEAPON (2) ------- Riot Gun Battle Rifle > --- INVENTORY (25) --- Light Treads Light Treads Light Treads Light Treads Light Treads Spiked Treads Wheel Subdweller Monowheel Flightbrick Large Storage Unit Seismic Detector Subdweller Laser Battle Rifle Subdweller Machine Gun Subdweller Machine Gun Battle Cannon Subdweller Shrapnel Launcher Multitool Hammer Peak State ------------ > --- POWER ------------ Light Nuclear Core > --- PROPULSION ------- Compact Wheel Compact Wheel > --- UTILITY ---------- Huge Storage Unit Seismic Detector > --- WEAPON ----------- Battle Rifle Subdweller Shrapnel Launcher > --- INVENTORY -------- Light Treads Light Treads Light Treads Light Treads Light Treads Spiked Treads Wheel Subdweller Monowheel Flightbrick Large Storage Unit Light Armor Plating Riot Gun Subdweller Laser Battle Rifle Subdweller Machine Gun Subdweller Machine Gun Battle Cannon Multitool Hammer [Rating: 17] Favorites ----------- Power Light Nuclear Core Engine Ion Engine Power Core Light Nuclear Core Propulsion Light Treads Treads Light Treads Wheel Compact Wheel Utility Large Storage Unit Device Seismic Detector Storage Large Storage Unit Protection Light Armor Plating Weapon Assault Rifle Energy Gun EM Pulse Gun Ballistic Gun Assault Rifle Launcher Subdweller Shrapnel Launcher Impact Weapon Hammer Build | -11 -10 -10 ------- Run | Yrd Mat Sub Slots Evolved . | . . . Power . | . . . Propulsion . | . . . Utility . | . . . Weapon . | . . . Parts Attached 23 | 7 5 11 Power 3 | 1 1 1 Engine 1 | 1 . . Core 2 | . 1 1 Reactor . | . . . Propulsion 6 | 2 1 3 Treads 4 | 2 1 1 Leg . | . . . Wheel 2 | . . 2 Hover . | . . . Flight . | . . . Utility 6 | 2 3 1 Device 2 | 1 1 . Storage 3 | 1 1 1 Processor . | . . . Hackware . | . . . Protection 1 | . 1 . Artifact . | . . . Weapon 8 | 2 . 6 Energy Gun 2 | . . 2 Energy Cannon . | . . . Ballistic Gun 4 | 2 . 2 Ballistic Cannon . | . . . Launcher 1 | . . 1 Special Weapon . | . . . Impact Weapon 1 | . . 1 Slashing Weapon . | . . . Piercing Weapon . | . . . Special Melee Weapon . | . . . Unidentified Prototypes . | . . . Parts Lost 3 | . . 3 Power 1 | . . 1 Propulsion 1 | . . 1 Utility . | . . . Weapon 1 | . . 1 Highest Loss Streak 2 | . . 2 To Critical Strikes . | . . . Average Backups 11 | 2 9 14 Power 1 | . 1 . Propulsion 4 | 1 3 6 Utility 2 | . 2 2 Weapon 3 | . 2 5 Tool/Special . | . . . Unused Backups 20 | . 2 18 Power 1 | . 1 . Propulsion 7 | . 1 6 Utility 1 | . . 1 Weapon 10 | . . 10 Tool/Special 1 | . . 1 Average Slot Usage (%) 98 | . 100 97 Engine 3 | . 6 . Core 9 | . 7 11 Treads 26 | . 28 25 Wheel 1 | . . 2 Device 10 | . 7 13 Storage 14 | . 14 14 Protection 3 | . 6 . Ballistic Gun 22 | . 28 15 Impact Weapon 4 | . . 10 Peak Build Rating 17 | 7 11 17 Average Rating 9 | 5 8 11 On Entrance 6 | . 7 11 Avg Prop Armor Cover (%) . | . . . Naked Turns . | . . . Heaviest Build 90 | 14 31 90 Greatest Support 40 | 40 40 40 Greatest Overweight (x) 2 | . . 2 Average Overweight (x) . | . . . Largest Inventory Capacity 25 | 8 15 25 Average Capacity 13 | 7 12 15 Most Carried 22 | 4 15 22 Average Carried 11 | 2 9 14 Final Capacity 25 | 8 15 25 Final Carried 22 | 4 15 22 Class Distribution -------------------- 100% | Mutant Dominant Class ---------------- Mutant | -10/Materials Mutant | -10/Subcaves Resources | -11 -10 -10 ----------- Run | Yrd Mat Sub Matter Collected 691 | 235 303 153 Remotely . | . . . Salvage Created 650 | 49 378 223 Parts 48 | 3 31 14 Haulers Intercepted 1 | . 1 . Recyclers Shooed 1 | . 1 . Parts Field Recycled . | . . . Retrieved Matter . | . . . Parts Self-Destructed . | . . . Prevented . | . . . Parts Restored . | . . . Kills | -11 -10 -10 ------- Run | Yrd Mat Sub Combat Hostiles Destroyed 15 | . 9 6 Guns 12 | . 9 3 AOE 3 | . . 3 Classes Destroyed 9 | 1 5 3 Worker 1 | . 1 . Tunneler 2 | 2 . . Hauler 1 | . 1 . Watcher 2 | . 2 . Swarmer 6 | . 5 1 Grunt 4 | . 4 . Sentry 1 | . . 1 Artisan 1 | . . 1 Subdweller 4 | . . 4 Best Kill Streak 3 | 2 3 3 Combat Bots Only 3 | . 3 3 Max Kills in Single Turn 1 | 1 1 1 Gunslinging . | . . . Exploded 1 | . . 1 Melee . | . . . Uniques/NPCs Destroyed . | . . . Combat | -11 -10 -10 -------- Run | Yrd Mat Sub Hostile Shots Fired 66 | . 31 35 Missed 16 | . 9 7 Hits 50 | . 22 28 Projectile 50 | . 22 28 Critical Strikes 1 | . . 1 Damage Taken 983 | . 267 716 Core 260 | . 31 229 Absorbed by Shields . | . . . Core Remaining (%) 100 | 100 . . Volleys Fired 73 | 11 41 21 Largest 2 | 2 2 2 Hottest 65 | 40 40 65 Shots Fired 136 | 22 82 32 Gun 127 | 22 82 23 Cannon . | . . . Launcher 9 | . . 9 Special . | . . . Kinetic 130 | 22 82 26 Thermal . | . . . Explosive . | . . . Electromagnetic 6 | . . 6 Robot Hit Streak 11 | 6 9 11 Robot Miss Streak 6 | 2 6 2 Penetration Max . | . . . Secondary Targets 3 | . 2 1 Max Gunslinging Chain 1 | . 1 1 Shots Hit Robots 91 | 15 47 29 Core Hits 37 | 4 21 12 Critical Kills 1 | . . 1 Critical Parts Destroyed . | . . . Critical Strikes 1 | . . 1 Destroy 1 | . . 1 Melee Attacks 26 | . . 26 Impact 26 | . . 26 Slashing . | . . . Piercing . | . . . Sneak Attacks 1 | . . 1 Combat Hostiles . | . . . Follow-up Attacks . | . . . Damage Inflicted 1755 | 156 514 1085 Guns 973 | 156 514 303 Cannons . | . . . Explosions 710 | . . 710 Melee 72 | . . 72 Ramming . | . . . Kinetic 1617 | 156 514 947 Thermal . | . . . Explosive . | . . . Electromagnetic 66 | . . 66 Impact 72 | . . 72 Slashing . | . . . Piercing . | . . . Highest Corruption . | . . . Average Corruption . | . . . Corruption Purged . | . . . Corruption Blocked . | . . . Overload Shots . | . . . Overflow Damage . | . . . Projectiles . | . . . Explosions . | . . . Melee . | . . . Knockbacks . | . . . Impact . | . . . Kinetic . | . . . Secondary . | . . . Self-Inflicted Damage . | . . . Shots . | . . . Rammed . | . . . Targets Rammed . | . . . Kicked . | . . . Crushed . | . . . Highest Temperature 263 | . 25 263 Average Temperature 18 | . 7 98 Received Heat Transfer 536 | . 105 431 Siege Activations . | . . . Martial Activations . | . . . Shielding Activations . | . . . Robots Disrupted . | . . . Combat Hostiles . | . . . Robots Corrupted . | . . . Combat Hostiles . | . . . Parts Fried . | . . . Impact Corruptions . | . . . Robots Melted . | . . . Combat Hostiles . | . . . Parts Melted . | . . . Heat Transferred . | . . . Parts Sabotaged . | . . . Parts Stolen . | . . . Parts Stripped . | . . . Power Chain Reactions . | . . . Alert | -11 -10 -10 ------- Run | Yrd Mat Sub Maximum Alert Level . | . . . Low Security (%) 100 | 100 100 . Level 1 . | . . . Level 2 . | . . . Level 3 . | . . . Level 4 . | . . . Level 5 . | . . . High Security . | . . . Max Security . | . . . Peak Influence 79 | 5 79 . Initial . | . . . Average 19 | . 20 . Influence Increases 369 | 10 319 40 Destroy 0b10 Robot/C 220 | . 180 40 Destroy 0b10 Robot/NC 30 | 10 20 . Destroy Leader 46 | . 46 . Successful Hack 43 | . 43 . Lose Combat Pursuer 30 | . 30 . Influence Decreases 343 | 10 319 14 Time Decay 333 | 10 319 4 Lost Part 10 | . . 10 Squads Dispatched . | . . . Investigation . | . . . Extermination . | . . . Reinforcement . | . . . Assault . | . . . Garrison . | . . . Intercept . | . . . Searches Triggered . | . . . Construction Impeded . | . . . Haulers Reinforced . | . . . Active Scanning Responses . | . . . Cargo Convoy Interrupts . | . . . Stealth | -11 -10 -10 --------- Run | Yrd Mat Sub Distress Signals 1 | . 1 . Communications Jammed . | . . . Distress Signals . | . . . Times Spotted 24 | . 16 8 Peak Tracking Total 3 | . 3 2 Tactical Retreats 2 | . 2 . Traps | -11 -10 -10 ------- Run | Yrd Mat Sub Traps Triggered 2 | . . 2 Indirectly . | . . . Trap Hack Attempts . | . . . Triggered . | . . . Disarmed . | . . . Reprogrammed 6 | . 6 . Reused . | . . . Traps Extracted . | . . . Installed . | . . . Triggered . | . . . Machines | -11 -10 -10 ---------- Run | Yrd Mat Sub Machines Disabled 1 | . . 1 Max in Single Turn 1 | . . 1 Machines Repaired . | . . . Machines Dismantled . | . . . Machines Sabotaged . | . . . Overloaded Fab Kills . | . . . Hacking | -11 -10 -10 --------- Run | Yrd Mat Sub Machines Accessed 10 | . 9 1 Terminals 8 | . 8 . Fabricators . | . . . Repair Stations 1 | . 1 . Recycling Units . | . . . Scanalyzers . | . . . Garrison Access . | . . . Total Hacks 39 | . 38 1 Successful 22 | . 21 1 Failed 17 | . 17 . Catastrophic 1 | . 1 . Database Lockouts . | . . . Manual 26 | . 26 . Terminals 34 | . 34 . Fabricators . | . . . Repair Stations 4 | . 4 . Recycling Units . | . . . Scanalyzers . | . . . Garrison Access . | . . . Terminal Hacks 13 | . 12 1 Robot Analysis 2 | . 2 . Prototype ID Bank 2 | . 2 . Locate Traps 2 | . 2 . Reprogram Traps 2 | . 2 . Security Status 1 | . 1 . Hauler Manifests 2 | . 2 . Zone Layout 1 | . 1 . Proto ID Catalog 1 | . . 1 Fabricator Hacks . | . . . Repair Station Hacks 1 | . 1 . Scan Component 1 | . 1 . Recycling Unit Hacks . | . . . Scanalyzer . | . . . Garrison Access Hacks . | . . . Unauthorized Hacks 8 | . 8 . Terminals 8 | . 8 . Track 1 | . 1 . Botnet 2 | . 2 . Skim 5 | . 5 . Fabricators . | . . . Repair Stations . | . . . Recycling Units . | . . . Scanalyzers . | . . . Garrison Access . | . . . Data Cores Recovered . | . . . Used . | . . . Hacking Detections 9 | . 9 . Full Trace Events 1 | . 1 . Feedback Events . | . . . Feedback Blocked . | . . . Robot Schematics Acquired . | . . . Robots Built . | . . . Authchips . | . . . Time . | . . . Total Robot Build Rating . | . . . Part Schematics Acquired . | . . . Parts Built . | . . . Authchips . | . . . Time . | . . . Total Part Build Rating . | . . . Part Studies Acquired . | . . . Parts Repaired . | . . . Time . | . . . Parts Recycled . | . . . Recycled Matter . | . . . Retrieved Matter . | . . . Retrieved Components . | . . . Parts Scanalyzed . | . . . Part Schematics Acquired . | . . . Parts Damaged . | . . . Bothacking | -11 -10 -10 ------------ Run | Yrd Mat Sub Used RIF Installer . | . . . Robots Hacked . | . . . Non-combat . | . . . Combat . | . . . Robot Hacks Applied . | . . . Relay Couplers Released . | . . . Fabnet Peak Effective % . | . . . Robots Rewired . | . . . Allies Hacked . | . . . Hacks Repelled . | . . . Allies | -11 -10 -10 -------- Run | Yrd Mat Sub Total Allies . | . . . Largest Group . | . . . Highest-Rated Group . | . . . Highest-Rated Ally . | . . . Total Orders . | . . . Ally Attacks . | . . . Total Damage . | . . . Kills . | . . . Allies Corrupted . | . . . Allies Melted . | . . . Intel | -11 -10 -10 ------- Run | Yrd Mat Sub Active Infowar (turns) 2224 | 43 814 1367 Seismic 2224 | 43 814 1367 Robot Analysis Total 2 | . 2 . Derelict Logs Recovered 2 | . . 2 Drone Launches . | . . . Drone Recoveries . | . . . Exploration | -11 -10 -10 ------------- Run | Yrd Mat Sub Turns Passed 3102 | 146 1584 1372 Spaces Moved 1508 | 65 835 608 Core 2 | 2 . . Treads 1448 | 63 835 550 Legs . | . . . Wheels 58 | . . 58 Hover . | . . . Flight . | . . . Fastest Speed 50 | 50 160 130 Average Speed 159 | 156 160 157 Slowest Speed 320 | 160 160 320 Overloaded Moves . | . . . Propulsion Burnouts . | . . . Robots Hopped . | . . . Potential Cave-ins . | . . . Cave-ins Triggered . | . . . Exploration Rate (%) 46 | 6 100 32 Regions Visited 2 Branch Regions 1 Pre-discovered Areas 2 | . . 2 Known Exits Taken 1 | . 1 . Unknown Exits Taken 1 | 1 . . Scrap Searched 5 | . . 5 Spaces Dug 3 | . . 3 Terrain Destroyed 78 | . . 78 Melee 3 | . . 3 Projectile . | . . . AOE 75 | . . 75 Terrain Rammed . | . . . Walls Destroyed . | . . . Machines Disabled . | . . . Actions | -11 -10 -10 --------- Run | Yrd Mat Sub Total 2043 | 86 1010 947 Wait 354 | . 112 242 Move 1506 | 64 834 608 Hop . | . . . Pick Up 36 | 4 12 20 Fast Attach 7 | 7 . . Attach 2 | . . 2 Detach . | . . . Swap 19 | . 6 13 Drop 20 | . 5 15 Fire 73 | 11 41 21 Melee 26 | . . 26 Ram . | . . . Kick . | . . . Crush . | . . . Escape Stasis . | . . . Rewire . | . . . Trap . | . . . Miscellaneous . | . . . Route ------- -11/Scrapyard -10/Materials (discovered 5 exits: *Mat x3 / [*Min] / *Sub) -10/Subcaves History --------- Turn | Location | Event 28 | -11/Scrapyard | Discovered new exit (range 15) 147 | -11/Scrapyard | Entered Materials 183 | -10/Materials | Discovered new exit (range 22) 300 | -10/Materials | Build established: Mutant 302 | -10/Materials | Identified exit to Materials 378 | -10/Materials | Identified exit to Subcaves 414 | -10/Materials | Learned Storage emergency access door positions 1731 | -10/Materials | Entered Subcaves 1732 | -10/Subcaves | Approached by a straggling Scientist 1747 | -10/Subcaves | Learned location of Zion (-6) 1951 | -10/Subcaves | A swath of the cavern ceiling suddenly collapsed 2717 | -10/Subcaves | Core integrity fell below 50% 2946 | -10/Subcaves | Visited 4L-MR0's lab 2980 | -10/Subcaves | Found Flightbrick 3086 | -10/Subcaves | Ambushed by Subdweller buried in earth 3095 | -10/Subcaves | Core integrity fell below 20% 3103 | -10/Subcaves | Destroyed by D6-1S2(R) with Subdweller Machine Gun Last Messages --------------- 03005_ Sneak attack on 4L-MR0. 03005_ 4L-MR0 cries out in pain. [Achievement: Art Critic] 03005_ 4L-MR0 destroyed. 03009_ Acquired Multitool. 03010_ Acquired 29 matter. 03014_ Acquired Wheel. 03022_ Acquired Battle Cannon. 03023_ Acquired 21 matter. 03025_ Acquired Sub. Machine Gun. 03080_ S-10 Pest destroyed. 03086_ Destroyed Lgt. Armor Plating. 03086_ Y-45 Defender destroyed. [Achievement: Do Not Disturb] 03087_ 48-P53(R): "ARGHSUB!" 03089_ VJ-THG(R): "ARGHSUB!" 03092_ 48-P53(R) destroyed. 03094_ D6-1S2(R): "THANKSYOU!" 03099_ Sub. Shrapnel Launcher shoots sparks and powers down. 03101_ Com. Wheel destroyed. Map ----- +----------------------------------------------------+ | ???????????????????????????????????????????? | | ???????????????????????????????????????????? | | ???????????????????????????????????????????? | | ???????????????????????????????????????????? | | ???????????????????????????????????????????? | | ???????????????????????????????????????????? | | ???????????????????????????????????????????? | | ???????????????????????????????????????????? | | ???????????????????????????????????????????? | | ???????????????????????????????????????????? | | ???????????????????????? ?????????????????? | | ??????????????????????#? ?????????????????? | | ?????????????????????? # ?????????????????? | | ???????????????? ????## ?????????????????? | | ?????????????? ???# ###??????????????? | | ?????????????? ?? % ##?????????????? | | ????????????? ? ??????????????? | | ????????????? ?? ??????????????? | | ???????????? ? #??????????????? | | ???????????? R # #??????????????? | | ???????????? R& # % #??????????????? | | ??????????? ???????????????? | | ???????????? % #???????????????? | | ???????????????? % #???????????????? | | ???????????????????? #???????????????? | | ???????????????????????# @ #???????????????? | | ???????????????????????# ##???????????????? | | ??????????????????????## #????????????????? | | ??????????????????????# #????????????????? | | ????????????????????### ###??????????????? | | ???????????????????## #??????????????? | | ???????????????????# #??????????????? | | ?????????????????### #??????????????? | | ??????????????#### # ##??????????????? | | ??????????????# ##???????????????? | | ??????????????## #????????????????? | | ??????????????## ## #???????????????? | | ??????????????# #### ##???????????????? | | ??????????????## ##??## #????????????????? | | ????????###????# #???## #???????????????? | | ######?## ##??## ##????? #???????????????? | | """""### #??# #?????# #???????????????? | | & %### ##?## #??????# #???????????????? | | ##% ## ### #???###?##???????????????? | | +##%[%"## #??##%#??????????????????? | | ##" # %%% %#### #??????????????????? | | #### ## ## #??????????????????? | | #?# #" ## ##??????????????????? | | #?# ####### ##??????????????????? | | #?# % ##?????# ##?????????????????? | +----------------------------------------------------+ Best States ------------- Heat Dissipation 25 Energy Generation 14 Energy Capacity 250 Matter Stores 300 Matter Capacity 300 Sight Range 16 Terrain Scan Density 10 Armor Coverage 150 Evasion (%) 40 Recoil Reduction 2 Item Schematics ----------------- None Robot Schematics ------------------ None Fabricated ------------ Nothing Repaired ---------- Nothing Studied --------- None Alien Tech Used ----------------- None Achievements -------------- Art Critic Do Not Disturb Challenges ------------ None Game ------ Seed GreatNovaKit Manual? 0 Play Time 00:25:52 Cumulative 533.3 hours Start 2025.11.22 @ 08:49:44 End 2025.11.22 @ 09:22:34 Sessions 1 Manual Loads 0 Difficulty Rogue Special Mode None Game No. 218 Rogue 218 Adventurer 0 Explorer 0 Win Type - Total 16 Types 14/0/1/1/0/0/0/0/0/0 Lore% 79 Gallery% 76 Achievement% 51 Wizard Run 0 Options --------- Layout 0 ASCII 0 Keyboard 0 Movement Numpad Keybinds 0 Fullscreen 1 Font 24/X11 Map View 76x50 Zoom Use 0% Tactical HUD 1 Map Filters NONE Filters NONE Steam 1 RUN: 91b51871-73ae-4d17-aa04-eee6770853b8